Cogmind - Beta 16 @@@ ROGUE MODE // 2025.10.23 @ 17:19:34 Player: Reflectatory Result: Destroyed by SA-OA9(R) with Subdweller Laser Performance ------------- Evolutions (0) 0 Regions Visited (3) 600 Robots Destroyed (7) 35 Value Destroyed (124) 124 Prototype IDs (0) 0 Alien Tech Used (0) 0 Bonus (0) 0 TOTAL SCORE: 759 Bonus ------- None Cogmind --------- Core Integrity 0/250 Matter 295/300 Energy 99/100 System Corruption 3% Temperature Cool (6) Movement Core (100) Ox1 Location -10/Subcaves Parts ------- > --- POWER (1) -------- (None) > --- PROPULSION (2) --- (None) > --- UTILITY (2) ------ Small Storage Unit > --- WEAPON (2) ------- (None) > --- INVENTORY (8) ---- Ion Engine Light Ion Engine EM Pulse Gun Welding Torch Peak State ------------ > --- POWER ------------ Ion Engine > --- PROPULSION ------- Wheel Compact Wheel > --- UTILITY ---------- Small Storage Unit Sensor Array > --- WEAPON ----------- EM Pulse Gun Assault Rifle > --- INVENTORY -------- Ion Engine EM Pulse Gun [Rating: 7] Favorites ----------- Power Ion Engine Engine Ion Engine Propulsion Compact Wheel Wheel Compact Wheel Utility Small Storage Unit Device Sensor Array Storage Small Storage Unit Weapon Mining Laser Energy Gun EM Pulse Gun Ballistic Gun Assault Rifle Special Weapon Mining Laser Build | -11 -10 -10 -10 ------- Run | Yrd Mat Min Sub Slots Evolved . | . . . . Power . | . . . . Propulsion . | . . . . Utility . | . . . . Weapon . | . . . . Parts Attached 10 | 5 4 1 . Power 1 | 1 . . . Engine 1 | 1 . . . Core . | . . . . Reactor . | . . . . Propulsion 2 | 2 . . . Treads . | . . . . Leg . | . . . . Wheel 2 | 2 . . . Hover . | . . . . Flight . | . . . . Utility 2 | . 2 . . Device 1 | . 1 . . Storage 1 | . 1 . . Processor . | . . . . Hackware . | . . . . Protection . | . . . . Artifact . | . . . . Weapon 5 | 2 2 1 . Energy Gun 2 | 1 . 1 . Energy Cannon . | . . . . Ballistic Gun 1 | 1 . . . Ballistic Cannon . | . . . . Launcher . | . . . . Special Weapon 2 | . 2 . . Impact Weapon . | . . . . Slashing Weapon . | . . . . Piercing Weapon . | . . . . Special Melee Weapon . | . . . . Unidentified Prototypes . | . . . . Parts Lost 6 | . . . 6 Power 1 | . . . 1 Propulsion 2 | . . . 2 Utility 1 | . . . 1 Weapon 2 | . . . 2 Highest Loss Streak 4 | . . . 4 To Critical Strikes . | . . . . Average Backups 3 | 1 2 3 4 Power 1 | . 1 1 2 Propulsion . | . . . . Utility . | . . . . Weapon . | . 1 . 1 Tool/Special . | . . . . Unused Backups 3 | . . . 3 Power 2 | . . . 2 Propulsion . | . . . . Utility . | . . . . Weapon . | . . . . Tool/Special 1 | . . . 1 Average Slot Usage (%) 88 | . 96 98 72 Engine 10 | . 14 14 4 Wheel 26 | . 28 28 24 Device 12 | . 10 14 12 Storage 14 | . 14 14 14 Energy Gun 3 | . 12 . . Ballistic Gun 3 | . 14 . . Special Weapon 15 | . 1 25 15 Peak Build Rating 7 | 5 7 7 7 Average Rating 5 | 4 6 6 4 On Entrance 4 | . 5 7 7 Avg Prop Armor Cover (%) . | . . . . Naked Turns . | . . . . Heaviest Build 15 | 9 15 14 13 Greatest Support 26 | 26 26 26 26 Greatest Overweight (x) 1 | . . . 1 Average Overweight (x) . | . . . . Largest Inventory Capacity 8 | 5 8 8 8 Average Capacity 7 | 5 8 8 8 Most Carried 4 | 3 2 4 4 Average Carried 3 | 1 2 3 4 Final Capacity 8 | 5 8 8 8 Final Carried 4 | 3 2 4 4 Class Distribution -------------------- 100% | Mutant Dominant Class ---------------- Mutant | -10/Materials Mutant | -10/Mines Mutant | -10/Subcaves Resources | -11 -10 -10 -10 ----------- Run | Yrd Mat Min Sub Matter Collected 301 | 198 36 67 . Remotely . | . . . . Salvage Created 107 | . 94 13 . Parts 16 | . 11 5 . Haulers Intercepted . | . . . . Recyclers Shooed . | . . . . Parts Field Recycled . | . . . . Retrieved Matter . | . . . . Parts Self-Destructed . | . . . . Prevented . | . . . . Parts Restored . | . . . . Kills | -11 -10 -10 -10 ------- Run | Yrd Mat Min Sub Combat Hostiles Destroyed 7 | . 4 2 1 Guns 5 | . 4 1 . Cannons 2 | . . 1 1 Classes Destroyed 3 | . 2 . 1 Swarmer 5 | . 3 2 . Grunt 1 | . 1 . . Subdweller 1 | . . . 1 Best Kill Streak 4 | . 4 1 1 Combat Bots Only 4 | . 4 1 1 Max Kills in Single Turn 2 | . 2 1 1 Gunslinging 1 | . 1 . . Exploded . | . . . . Melee . | . . . . Uniques/NPCs Destroyed . | . . . . Combat | -11 -10 -10 -10 -------- Run | Yrd Mat Min Sub Hostile Shots Fired 64 | . 23 18 23 Missed 23 | . 7 8 8 Hits 41 | . 16 10 15 Projectile 41 | . 16 10 15 Damage Taken 648 | . 143 74 431 Core 252 | . 40 28 184 Absorbed by Shields . | . . . . Core Remaining (%) 100 | 100 . . . Volleys Fired 15 | . 6 6 3 Largest 2 | . 2 2 2 Hottest 200 | . 60 200 200 Shots Fired 25 | . 12 8 5 Gun 13 | . 12 1 . Cannon . | . . . . Launcher . | . . . . Special 12 | . . 7 5 Kinetic 6 | . 6 . . Thermal 12 | . . 7 5 Explosive . | . . . . Electromagnetic 7 | . 6 1 . Robot Hit Streak 9 | . 6 9 3 Robot Miss Streak 4 | . 2 4 2 Penetration Max . | . . . . Secondary Targets 1 | . 1 . . Max Gunslinging Chain 1 | . 1 . . Shots Hit Robots 15 | . 8 4 3 Core Hits 10 | . 6 2 2 Critical Kills . | . . . . Critical Parts Destroyed . | . . . . Critical Strikes . | . . . . Melee Attacks . | . . . . Impact . | . . . . Slashing . | . . . . Piercing . | . . . . Sneak Attacks . | . . . . Combat Hostiles . | . . . . Follow-up Attacks . | . . . . Damage Inflicted 270 | . 115 83 72 Guns 120 | . 109 11 . Cannons . | . . . . Explosions . | . . . . Melee . | . . . . Ramming 6 | . 6 . . Kinetic 73 | . 73 . . Thermal 144 | . . 72 72 Explosive . | . . . . Electromagnetic 47 | . 36 11 . Impact . | . . . . Slashing . | . . . . Piercing . | . . . . Highest Corruption 3 | . 3 3 3 Average Corruption 2 | . 1 3 3 Corruption Purged . | . . . . Corruption Blocked . | . . . . Effects 6 | . . 5 1 Message Errors 2 | . . 2 . Energy Discharges 2 | . . 1 1 Parts Rejected 1 | . . 1 . Data Loss (minor) 1 | . . 1 . Overload Shots . | . . . . Overflow Damage 4 | . . 4 . Projectiles 4 | . . 4 . Explosions . | . . . . Melee . | . . . . Knockbacks . | . . . . Impact . | . . . . Kinetic . | . . . . Secondary . | . . . . Self-Inflicted Damage 3 | . 3 . . Shots . | . . . . Rammed 1 | . 1 . . Targets Rammed 1 | . 1 . . Kicked . | . . . . Crushed . | . . . . Highest Temperature 136 | . 38 136 . Average Temperature 60 | . 28 75 . Received Heat Transfer 54 | . 18 . 36 Siege Activations . | . . . . Martial Activations . | . . . . Shielding Activations . | . . . . Robots Disrupted . | . . . . Combat Hostiles . | . . . . Robots Corrupted . | . . . . Combat Hostiles . | . . . . Parts Fried . | . . . . Impact Corruptions . | . . . . Robots Melted . | . . . . Combat Hostiles . | . . . . Parts Melted . | . . . . Heat Transferred 300 | . . 150 150 Parts Sabotaged . | . . . . Parts Stolen . | . . . . Parts Stripped . | . . . . Power Chain Reactions . | . . . . Alert | -11 -10 -10 -10 ------- Run | Yrd Mat Min Sub Maximum Alert Level . | . . . . Low Security (%) 100 | 100 100 100 . Level 1 . | . . . . Level 2 . | . . . . Level 3 . | . . . . Level 4 . | . . . . Level 5 . | . . . . High Security . | . . . . Max Security . | . . . . Peak Influence 90 | . 90 51 . Initial 31 | . . 31 . Average 20 | . 25 25 . Influence Increases 140 | . 100 40 . Destroy 0b10 Robot/C 120 | . 80 40 . Destroy Leader 20 | . 20 . . Influence Decreases 140 | . 20 120 . Entered New Map 49 | . . 49 . Time Decay 91 | . 20 71 . Squads Dispatched 1 | . 1 . . Investigation . | . . . . Extermination . | . . . . Reinforcement 1 | . 1 . . Assault . | . . . . Garrison . | . . . . Intercept . | . . . . Searches Triggered . | . . . . Construction Impeded . | . . . . Haulers Reinforced . | . . . . Active Scanning Responses . | . . . . Cargo Convoy Interrupts . | . . . . Stealth | -11 -10 -10 -10 --------- Run | Yrd Mat Min Sub Distress Signals . | . . . . Communications Jammed . | . . . . Distress Signals . | . . . . Times Spotted 12 | . 5 3 4 Peak Tracking Total 5 | . 5 3 4 Tactical Retreats . | . . . . Traps | -11 -10 -10 -10 ------- Run | Yrd Mat Min Sub Traps Triggered 3 | . 1 . 2 Indirectly . | . . . . Trap Hack Attempts . | . . . . Triggered . | . . . . Disarmed . | . . . . Reprogrammed . | . . . . Reused . | . . . . Traps Extracted . | . . . . Installed . | . . . . Triggered . | . . . . Machines | -11 -10 -10 -10 ---------- Run | Yrd Mat Min Sub Machines Disabled . | . . . . Max in Single Turn . | . . . . Machines Repaired . | . . . . Machines Dismantled . | . . . . Machines Sabotaged . | . . . . Overloaded Fab Kills . | . . . . Hacking | -11 -10 -10 -10 --------- Run | Yrd Mat Min Sub Machines Accessed 2 | . 2 . . Terminals 2 | . 2 . . Fabricators . | . . . . Repair Stations . | . . . . Recycling Units . | . . . . Scanalyzers . | . . . . Garrison Access . | . . . . Total Hacks 7 | . 7 . . Successful 2 | . 2 . . Failed 5 | . 5 . . Catastrophic . | . . . . Database Lockouts . | . . . . Manual 6 | . 6 . . Terminals 7 | . 7 . . Fabricators . | . . . . Repair Stations . | . . . . Recycling Units . | . . . . Scanalyzers . | . . . . Garrison Access . | . . . . Terminal Hacks 1 | . 1 . . Locate Traps 1 | . 1 . . Fabricator Hacks . | . . . . Repair Station Hacks . | . . . . Recycling Unit Hacks . | . . . . Scanalyzer . | . . . . Garrison Access Hacks . | . . . . Unauthorized Hacks 1 | . 1 . . Terminals 1 | . 1 . . Botnet 1 | . 1 . . Fabricators . | . . . . Repair Stations . | . . . . Recycling Units . | . . . . Scanalyzers . | . . . . Garrison Access . | . . . . Data Cores Recovered . | . . . . Used . | . . . . Hacking Detections 2 | . 2 . . Full Trace Events 1 | . 1 . . Feedback Events . | . . . . Feedback Blocked . | . . . . Robot Schematics Acquired . | . . . . Robots Built . | . . . . Authchips . | . . . . Time . | . . . . Total Robot Build Rating . | . . . . Part Schematics Acquired . | . . . . Parts Built . | . . . . Authchips . | . . . . Time . | . . . . Total Part Build Rating . | . . . . Part Studies Acquired . | . . . . Parts Repaired . | . . . . Time . | . . . . Parts Recycled . | . . . . Recycled Matter . | . . . . Retrieved Matter . | . . . . Retrieved Components . | . . . . Parts Scanalyzed . | . . . . Part Schematics Acquired . | . . . . Parts Damaged . | . . . . Bothacking | -11 -10 -10 -10 ------------ Run | Yrd Mat Min Sub Used RIF Installer . | . . . . Robots Hacked . | . . . . Non-combat . | . . . . Combat . | . . . . Robot Hacks Applied . | . . . . Relay Couplers Released . | . . . . Fabnet Peak Effective % . | . . . . Robots Rewired . | . . . . Allies Hacked . | . . . . Hacks Repelled . | . . . . Allies | -11 -10 -10 -10 -------- Run | Yrd Mat Min Sub Total Allies . | . . . . Largest Group . | . . . . Highest-Rated Group . | . . . . Highest-Rated Ally . | . . . . Total Orders . | . . . . Ally Attacks . | . . . . Total Damage . | . . . . Kills . | . . . . Allies Corrupted . | . . . . Allies Melted . | . . . . Intel | -11 -10 -10 -10 ------- Run | Yrd Mat Min Sub Active Infowar (turns) 390 | . 102 161 127 Sensors 390 | . 102 161 127 Robot Analysis Total . | . . . . Derelict Logs Recovered 2 | . . . 2 Drone Launches . | . . . . Drone Recoveries . | . . . . Exploration | -11 -10 -10 -10 ------------- Run | Yrd Mat Min Sub Turns Passed 484 | 57 118 161 148 Spaces Moved 426 | 53 104 140 129 Core 21 | 3 . . 18 Treads . | . . . . Legs . | . . . . Wheels 405 | 50 104 140 111 Hover . | . . . . Flight . | . . . . Fastest Speed 50 | 50 90 90 90 Average Speed 90 | 88 90 90 91 Slowest Speed 100 | 100 90 90 100 Overloaded Moves . | . . . . Propulsion Burnouts . | . . . . Robots Hopped . | . . . . Potential Cave-ins . | . . . . Cave-ins Triggered . | . . . . Exploration Rate (%) 19 | 4 25 39 9 Regions Visited 3 Branch Regions 2 Pre-discovered Areas 2 | . . 1 1 Known Exits Taken . | . . . . Unknown Exits Taken 3 | 1 1 1 . Scrap Searched 1 | . . 1 . Spaces Dug . | . . . . Terrain Destroyed . | . . . . Melee . | . . . . Projectile . | . . . . AOE . | . . . . Terrain Rammed . | . . . . Walls Destroyed . | . . . . Machines Disabled . | . . . . Actions | -11 -10 -10 -10 --------- Run | Yrd Mat Min Sub Total 467 | 60 114 151 142 Wait 11 | . . 1 10 Move 423 | 52 103 139 129 Hop . | . . . . Pick Up 5 | 3 . 2 . Fast Attach 6 | 5 1 . . Attach 2 | . 1 1 . Detach . | . . . . Swap 4 | . 2 2 . Drop . | . . . . Fire 15 | . 6 6 3 Melee . | . . . . Ram 1 | . 1 . . Kick . | . . . . Crush . | . . . . Escape Stasis . | . . . . Rewire . | . . . . Trap . | . . . . Miscellaneous . | . . . . Route ------- -11/Scrapyard -10/Materials -10/Mines -10/Subcaves History --------- Turn | Location | Event 10 | -11/Scrapyard | Discovered new exit (range 15) 58 | -11/Scrapyard | Entered Materials 154 | -10/Materials | Discovered new exit (range 8) 176 | -10/Materials | Entered Mines 284 | -10/Mines | Learned location of Storage (-7) 314 | -10/Mines | Build established: Mutant 332 | -10/Mines | Discovered new exit (range 4) 337 | -10/Mines | Entered Subcaves 349 | -10/Subcaves | Shifting Twisted Machinery released Flamer 378 | -10/Subcaves | Shifting Twisted Machinery released Mak. Thermal Plating 420 | -10/Subcaves | Learned location of Zion (-6) 463 | -10/Subcaves | Core integrity fell below 50% 466 | -10/Subcaves | Core integrity fell below 20% 485 | -10/Subcaves | Destroyed by SA-OA9(R) with Subdweller Laser Last Messages --------------- N6-97S(R) destroyed. System corrupted: Energy discharge (-23). Mak. Thermal Plating falls loose from the Twisted Machinery. Acquired derelict log, extracted data. World map updated: -6/Zion. Acquired derelict log, extracted data. Data stored: Storage entrances (x1). Mining Laser destroyed. Triggered Shrapnel Trap. An expanding cloud of shrapnel blasts out in all directions. Wheel destroyed. Sensor Array destroyed. Triggered Piercing Trap. Spikes shoot up from the floor. Critical hit (Impale). Com. Wheel destroyed. 2G-WIW(u) builds Twisted Machinery. A thin wall crumbles away, revealing a door. Map ----- +----------------------------------------------------+ | | | | | | | | | ?????????????????????????????????????????????????? | | ?????????????????????????????????????????????????? | | ?????????????????????????????????????????????????? | | ?????????????????????????????????????????????????? | | ?????????????????????????????????????????????????? | | ?????????????????????????????????????????????????? | | ?????????????????????????????????????????????????? | | ?????????????????????????????????????????????????? | | ?????????????????????????????????????????????????? | | ?????????????????????????????????????????????????? | | ?????????????????????????????????????????????????? | | ?????????????????????????????????????????????????? | | ?????????????????????????????????????????????????? | | ?????????????????????????????????????????????????? | | ???????????????????????????"#?######?????????????? | | ?????????????????????????## ## ###???????????? | | ????????????????????????## #???????????? | | ???????????????????????## ????????????? | | ???????????????????????# #??????????????? | | ?????????? ? ??????# #??????????????? | | ????????? ???# #??????????????? | | ????????? ## @ #???????????????? | | ????????? ##???????????????? | | ????????????????### ##????????????????? | | ??????????????????# ## ##?????????????????? | | ??????????????????# ?# ##???????#?????????? | | ???????????????? ?# ##???? #?????????? | | ?????????????? #?# #### #?????????? | | ?????????????## # ?## " #??????###? | | ??????????????####### ## " ##??????# ## | | ???????????????????? ## "### ###????### | | ????????????????????" ?# ## R "##??## ###### ## | | ??????????????????? ?# ?# "R##???# # ## ### | | ??????????????????? ?## #?#"R"#?#### # ###? | | ??????????????????# ???##??## "### # ## | | ??????????????????## ???????# ## ## ##### # | | ???????????????????? ?????###" ^####???### | | ?????????????????????????##"#" ^ ####????????? | | ????????????????????????## " ###???????????? | | ????????????????????????# ""##?????????????? | | ???????????????????????## "##??????????????? | | ???????????????????????# # #???????????????? | | ??????????????????????## #### ##???????????????? | | ??????????????????????# ### #???????????????? | | ??????????????????????# # ##???????????????? | | ??????????????????????### #???????????????? | +----------------------------------------------------+ Best States ------------- Heat Dissipation 25 Energy Generation 10 Energy Capacity 250 Matter Stores 295 Matter Capacity 300 Sight Range 16 Robot Scan Range 14 Terrain Scan Density 10 Evasion (%) 42 Item Schematics ----------------- None Robot Schematics ------------------ None Fabricated ------------ Nothing Repaired ---------- Nothing Studied --------- None Alien Tech Used ----------------- None Achievements -------------- For Emergencies Only Challenges ------------ None Game ------ Seed ZeronetAngularShielding Manual? 0 Play Time 00:06:19 Cumulative 43.0 hours Start 2025.10.23 @ 15:38:58 End 2025.10.23 @ 17:19:34 Sessions 3 Manual Loads 0 Difficulty Rogue Special Mode None Game No. 45 Rogue 45 Adventurer 0 Explorer 0 Win Type - Total 1 Types 1/0/0/0/0/0/0/0/0/0 Lore% 40 Gallery% 41 Achievement% 25 Wizard Run 0 Options --------- Layout 1 ASCII 0 Keyboard 0 Movement Numpad Keybinds 0 Fullscreen 1 Font 32/SmallcapsGlow Map View 50x35 Zoom Use 0% Tactical HUD 0 Map Filters NONE Filters NONE Steam 1 RUN: b7a25e1a-68dd-48df-8af0-1fd9b0774c96